Cogmind - Beta 17 @@@ ROGUE MODE // 2026.07.27 @ 19:20:23 Player: Marienkos Result: Destroyed by G-47 Trooper with Particle Gun Performance ------------- Evolutions (2) 1000 Regions Visited (5) 1000 Robots Destroyed (14) 70 Value Destroyed (559) 559 Prototype IDs (1) 20 Alien Tech Used (0) 0 Bonus (0) 0 TOTAL SCORE: 2649 Bonus ------- None Cogmind --------- Core Integrity 0/550 Matter 300/300 Energy 100/100 System Corruption 4% Temperature Cool (9) Movement Core (50) Location -8/Materials Parts ------- > --- POWER (1) -------- (None) > --- PROPULSION (2) --- (None) > --- UTILITY (5) ------ Advanced Targeting Computer Melee Analysis Suite Improved Utility Shielding > --- WEAPON (3) ------- (None) > --- INVENTORY (5) ---- Light Ion Engine Improved Ion Engine Light Nuclear Core Reaction Control System Light Armor Plating Peak State ------------ > --- POWER ------------ Light Nuclear Core > --- PROPULSION ------- Aluminum Leg Compact Wheel > --- UTILITY ---------- Improved Heat Sink Core Shielding Improved Utility Shielding Light Armor Plating Sensor Drone Bay > --- WEAPON ----------- Beam Rifle Light Assault Rifle Axe > --- INVENTORY -------- Light Ion Engine Improved Ion Engine Light Nuclear Core Reaction Control System Light Armor Plating [Rating: 28] Favorites ----------- Power Improved Ion Engine Engine Improved Ion Engine Power Core Light Nuclear Core Propulsion Compact Wheel Leg Aluminum Leg Wheel Compact Wheel Utility Core Shielding Device Sensor Drone Bay Processor Advanced Targeting Computer Protection Core Shielding Weapon Rocket Launcher Energy Gun Beam Rifle Ballistic Gun Light Assault Rifle Launcher Rocket Launcher Special Weapon Mining Laser Slashing Weapon Axe Build | -11 -10 -10 -9 -9 -8 ------- Run | Yrd Mat Min Mat Min Mat Slots Evolved 4 | . . . 2 . 2 Power . | . . . . . . Propulsion . | . . . . . . Utility 3 | . . . 1 . 2 Weapon 1 | . . . 1 . . Parts Attached 33 | 5 4 1 4 3 16 Power 7 | 1 . . 2 . 4 Engine 4 | 1 . . 2 . 1 Core 3 | . . . . . 3 Reactor . | . . . . . . Propulsion 3 | 2 . . . . 1 Treads . | . . . . . . Leg 1 | . . . . . 1 Wheel 2 | 2 . . . . . Hover . | . . . . . . Flight . | . . . . . . Utility 12 | . 2 1 . 1 8 Device 3 | . . . . 1 2 Storage . | . . . . . . Processor 3 | . 1 . . . 2 Hackware . | . . . . . . Protection 6 | . 1 1 . . 4 Artifact . | . . . . . . Weapon 11 | 2 2 . 2 2 3 Energy Gun 5 | 2 . . 1 . 2 Energy Cannon . | . . . . . . Ballistic Gun 1 | . . . . 1 . Ballistic Cannon . | . . . . . . Launcher 3 | . 2 . 1 . . Special Weapon 1 | . . . . 1 . Impact Weapon . | . . . . . . Slashing Weapon 1 | . . . . . 1 Piercing Weapon . | . . . . . . Special Melee Weapon . | . . . . . . Unidentified Prototypes 1 | . . . . 1 . Parts Lost 17 | . . . 2 4 11 Power 3 | . . . . 1 2 Propulsion 2 | . . . 1 . 1 Utility 3 | . . . . . 3 Weapon 9 | . . . 1 3 5 Highest Loss Streak 7 | . . . 2 4 7 To Critical Strikes . | . . . . . . Average Backups 3 | . 2 5 4 2 3 Power 1 | . 1 1 1 1 2 Propulsion . | . . . . . . Utility . | . . . . . 1 Weapon . | . 1 4 2 1 . Tool/Special . | . . . . . . Unused Backups 2 | . . . . . 2 Power 1 | . . . . . 1 Propulsion . | . . . . . . Utility 1 | . . . . . 1 Weapon . | . . . . . . Tool/Special . | . . . . . . Average Slot Usage (%) 77 | . 87 98 81 68 73 Engine 7 | . 14 14 11 11 4 Core 1 | . . . . . 3 Leg 1 | . . . . . 2 Wheel 12 | . 28 28 15 11 6 Device 6 | . . . . 1 10 Processor 4 | . 12 5 . . 5 Protection 19 | . 3 21 22 22 21 Energy Gun 8 | . 26 . 6 6 5 Ballistic Gun 4 | . . . . 4 7 Launcher 7 | . 1 28 26 7 . Slashing Weapon 2 | . . . . . 4 Peak Build Rating 28 | 5 9 9 12 14 28 Average Rating 14 | 3 6 8 10 8 19 On Entrance 7 | . 5 9 9 10 14 Avg Prop Armor Cover (%) 2 | . . . . . 2 Naked Turns . | . . . . . . Heaviest Build 35 | 6 12 13 21 23 35 Greatest Support 26 | 26 26 26 26 16 16 Greatest Overweight (x) 3 | . . . 1 1 3 Average Overweight (x) . | . . . . . 1 Largest Inventory Capacity 5 | 5 5 5 5 5 5 Average Capacity 5 | 5 5 5 5 5 5 Most Carried 5 | 2 5 5 5 4 5 Average Carried 3 | 1 3 5 4 2 3 Final Capacity 5 | 5 5 5 5 5 5 Final Carried 5 | 2 5 5 4 1 5 Class Distribution -------------------- 48% | Mutant 34% | Scavenger-Mutant 17% | Bomber Dominant Class ---------------- Mutant | -10/Materials Mutant | -10/Mines Bomber | -9/Materials Mutant | -9/Mines Scavenger-Mutant | -8/Materials Resources | -11 -10 -10 -9 -9 -8 ----------- Run | Yrd Mat Min Mat Min Mat Matter Collected 646 | 195 . 70 9 116 256 Remotely . | . . . . . . Salvage Created 502 | . . 10 9 21 462 Parts 23 | . . 1 1 1 20 Haulers Intercepted . | . . . . . . Recyclers Shooed . | . . . . . . Parts Field Recycled . | . . . . . . Retrieved Matter . | . . . . . . Parts Self-Destructed . | . . . . . . Prevented . | . . . . . . Parts Restored . | . . . . . . Kills | -11 -10 -10 -9 -9 -8 ------- Run | Yrd Mat Min Mat Min Mat Combat Hostiles Destroyed 14 | . . 3 1 1 9 Melee 1 | . . . . . 1 Guns 9 | . . . . 1 8 AOE 4 | . . 3 1 . . Classes Destroyed 4 | . . 1 1 1 1 Swarmer 3 | . . 3 . . . Grunt 8 | . . . 1 . 7 Sentry 2 | . . . . . 2 Demolisher 1 | . . . . 1 . Best Kill Streak 3 | . . 3 1 1 3 Combat Bots Only 3 | . . 3 1 1 3 Max Kills in Single Turn 2 | . . 2 1 1 1 Gunslinging . | . . . . . . Exploded 2 | . . 2 1 . . Melee 1 | . . . . . 1 Uniques/NPCs Destroyed . | . . . . . . Combat | -11 -10 -10 -9 -9 -8 -------- Run | Yrd Mat Min Mat Min Mat Hostile Shots Fired 172 | . . 10 2 3 157 Missed 53 | . . 3 . . 50 Hits 119 | . . 7 2 3 107 Projectile 119 | . . 7 2 3 107 AOE 3 | . . . . 3 . Critical Strikes 5 | . . . . . 5 Actively Blocked 2 | . . . . . 2 Damage Taken 2098 | . . 145 164 246 1543 Core 632 | . . 52 . 27 553 Absorbed by Shields . | . . . . . . Redirected to Shielding 139 | . . 11 . 6 122 Core Remaining (%) 90 | 100 . 79 . 93 . Volleys Fired 48 | . . 2 1 4 41 Largest 3 | . . 2 3 1 2 Hottest 99 | . . 66 99 40 76 Shots Fired 71 | . . 4 3 4 60 Gun 64 | . . . . 4 60 Cannon . | . . . . . . Launcher 7 | . . 4 3 . . Special . | . . . . . . Kinetic 32 | . . . . . 32 Thermal 28 | . . . . . 28 Explosive 7 | . . 4 3 . . Electromagnetic 4 | . . . . 4 . Robot Hit Streak 13 | . . 2 5 7 13 Robot Miss Streak 2 | . . . . 1 2 Penetration Max . | . . . . . . Secondary Targets 2 | . . . . . 2 Max Gunslinging Chain 1 | . . . . . 1 Shots Hit Robots 61 | . . 2 3 3 53 Core Hits 31 | . . 3 1 2 25 Critical Kills . | . . . . . . Critical Parts Destroyed . | . . . . . . Critical Strikes 2 | . . . . . 2 Burn 2 | . . . . . 2 Melee Attacks 11 | . . . . . 11 Impact . | . . . . . . Slashing 11 | . . . . . 11 Piercing . | . . . . . . Sneak Attacks . | . . . . . . Combat Hostiles . | . . . . . . Follow-up Attacks . | . . . . . . Damage Inflicted 1291 | . . 258 140 32 861 Guns 555 | . . . . 32 523 Cannons . | . . . . . . Explosions 398 | . . 258 140 . . Melee 293 | . . . . . 293 Ramming 45 | . . . . . 45 Kinetic 186 | . . . . . 186 Thermal 401 | . . 64 . . 337 Explosive 334 | . . 194 140 . . Electromagnetic 32 | . . . . 32 . Impact . | . . . . . . Slashing 293 | . . . . . 293 Piercing . | . . . . . . Highest Corruption 9 | . . . . 9 4 Average Corruption 4 | . . . . 9 4 Corruption Purged . | . . . . . . Corruption Blocked . | . . . . . . Effects 15 | . . . . 1 14 Message Errors 4 | . . . . . 4 Matter Fused 6 | . . . . . 6 Heat Flow Errors 1 | . . . . 1 . Energy Discharges 1 | . . . . . 1 Data Loss (major) 2 | . . . . . 2 Misfires 1 | . . . . . 1 Overload Shots . | . . . . . . Overflow Damage 74 | . . 46 19 . 9 Projectiles . | . . . . . . Explosions 65 | . . 46 19 . . Melee 9 | . . . . . 9 Knockbacks . | . . . . . . Impact . | . . . . . . Kinetic . | . . . . . . Secondary . | . . . . . . Self-Inflicted Damage 246 | . . 84 141 . 21 Shots 6 | . . 3 3 . . Rammed 5 | . . . . . 5 Targets Rammed 5 | . . . . . 5 Kicked . | . . . . . . Crushed . | . . . . . . Highest Temperature 194 | . . 36 33 194 150 Average Temperature 41 | . . 28 19 102 36 Received Heat Transfer 819 | . . 15 12 . 792 Siege Activations . | . . . . . . Martial Activations . | . . . . . . Shielding Activations . | . . . . . . Robots Disrupted . | . . . . . . Combat Hostiles . | . . . . . . Robots Corrupted . | . . . . . . Combat Hostiles . | . . . . . . Parts Fried . | . . . . . . Impact Corruptions . | . . . . . . Robots Melted . | . . . . . . Combat Hostiles . | . . . . . . Parts Melted 2 | . . . . . 2 Heat Transferred 1099 | . . 100 . . 999 Parts Sabotaged . | . . . . . . Parts Stolen . | . . . . . . Parts Stripped . | . . . . . . Power Chain Reactions . | . . . . . . Alert | -11 -10 -10 -9 -9 -8 ------- Run | Yrd Mat Min Mat Min Mat Maximum Alert Level . | . . . . . . Low Security (%) 100 | 100 100 100 100 100 100 Level 1 . | . . . . . . Level 2 . | . . . . . . Level 3 . | . . . . . . Level 4 . | . . . . . . Level 5 . | . . . . . . High Security . | . . . . . . Max Security . | . . . . . . Peak Influence 130 | . 11 130 39 30 72 Initial 39 | . . . 39 . . Average 18 | . 1 109 11 5 17 Influence Increases 480 | . 11 130 39 30 270 Destroy 0b10 Robot/C 280 | . . 60 20 20 180 Destroy Leader 50 | . . 10 . 10 30 Successful Hack 16 | . 11 . 5 . . Disable Machine 30 | . . 30 . . . Destroy Structure 44 | . . 30 14 . . Lose Combat Pursuer 60 | . . . . . 60 Influence Decreases 420 | . 11 30 139 30 210 Entered New Map 61 | . . . 61 . . Time Decay 273 | . 11 30 64 10 158 Lost Part 86 | . . . 14 20 52 Squads Dispatched 1 | . . . . . 1 Investigation . | . . . . . . Extermination . | . . . . . . Reinforcement 1 | . . . . . 1 Assault . | . . . . . . Garrison . | . . . . . . Intercept . | . . . . . . Searches Triggered . | . . . . . . Construction Impeded . | . . . . . . Haulers Reinforced . | . . . . . . Active Scanning Responses . | . . . . . . Cargo Convoy Interrupts . | . . . . . . Stealth | -11 -10 -10 -9 -9 -8 --------- Run | Yrd Mat Min Mat Min Mat Distress Signals . | . . . . . . Communications Jammed . | . . . . . . Distress Signals . | . . . . . . Times Spotted 32 | . 2 5 2 1 22 Peak Tracking Total 8 | . 1 3 1 1 8 Tactical Retreats 1 | . . . . . 1 Traps | -11 -10 -10 -9 -9 -8 ------- Run | Yrd Mat Min Mat Min Mat Traps Triggered 1 | . 1 . . . . Indirectly . | . . . . . . Trap Hack Attempts . | . . . . . . Triggered . | . . . . . . Disarmed . | . . . . . . Reprogrammed . | . . . . . . Reused . | . . . . . . Traps Extracted . | . . . . . . Installed . | . . . . . . Triggered . | . . . . . . Machines | -11 -10 -10 -9 -9 -8 ---------- Run | Yrd Mat Min Mat Min Mat Machines Disabled 2 | . . 2 . . . Max in Single Turn 2 | . . 2 . . . Machines Repaired . | . . . . . . Machines Dismantled . | . . . . . . Machines Sabotaged . | . . . . . . Overloaded Fab Kills . | . . . . . . Hacking | -11 -10 -10 -9 -9 -8 --------- Run | Yrd Mat Min Mat Min Mat Machines Accessed 5 | . 1 . 2 1 1 Terminals 4 | . 1 . 2 . 1 Fabricators . | . . . . . . Repair Stations . | . . . . . . Recycling Units . | . . . . . . Scanalyzers . | . . . . . . Garrison Access . | . . . . . . Total Hacks 9 | . 2 . 4 1 2 Successful 4 | . 2 . 1 1 . Failed 5 | . . . 3 . 2 Catastrophic 3 | . . . 1 . 2 Database Lockouts . | . . . . . . Manual 2 | . . . . . 2 Terminals 8 | . 2 . 4 . 2 Fabricators . | . . . . . . Repair Stations . | . . . . . . Recycling Units . | . . . . . . Scanalyzers . | . . . . . . Garrison Access . | . . . . . . Terminal Hacks 4 | . 2 . 1 1 . Robot Analysis 1 | . 1 . . . . Open Door 1 | . . . . 1 . Branch Access Points 1 | . 1 . . . . Reinforcement Status 1 | . . . 1 . . Fabricator Hacks . | . . . . . . Repair Station Hacks . | . . . . . . Recycling Unit Hacks . | . . . . . . Scanalyzer . | . . . . . . Garrison Access Hacks . | . . . . . . Unauthorized Hacks . | . . . . . . Terminals . | . . . . . . Fabricators . | . . . . . . Repair Stations . | . . . . . . Recycling Units . | . . . . . . Scanalyzers . | . . . . . . Garrison Access . | . . . . . . Data Cores Recovered . | . . . . . . Used . | . . . . . . Hacking Detections 4 | . 1 . 2 . 1 Full Trace Events . | . . . . . . Feedback Events . | . . . . . . Feedback Blocked . | . . . . . . Robot Schematics Acquired . | . . . . . . Robots Built . | . . . . . . Authchips . | . . . . . . Time . | . . . . . . Total Robot Build Rating . | . . . . . . Part Schematics Acquired . | . . . . . . Parts Built . | . . . . . . Authchips . | . . . . . . Time . | . . . . . . Total Part Build Rating . | . . . . . . Part Studies Acquired . | . . . . . . Parts Repaired . | . . . . . . Time . | . . . . . . Parts Recycled . | . . . . . . Recycled Matter . | . . . . . . Retrieved Matter . | . . . . . . Retrieved Components . | . . . . . . Parts Scanalyzed . | . . . . . . Part Schematics Acquired . | . . . . . . Parts Damaged . | . . . . . . Bothacking | -11 -10 -10 -9 -9 -8 ------------ Run | Yrd Mat Min Mat Min Mat Used RIF Installer . | . . . . . . Robots Hacked . | . . . . . . Non-combat . | . . . . . . Combat . | . . . . . . Robot Hacks Applied . | . . . . . . Relay Couplers Released . | . . . . . . Fabnet Peak Effective % . | . . . . . . Robots Rewired . | . . . . . . Allies Hacked . | . . . . . . Hacks Repelled . | . . . . . . Allies | -11 -10 -10 -9 -9 -8 -------- Run | Yrd Mat Min Mat Min Mat Total Allies . | . . . . . . Largest Group . | . . . . . . Highest-Rated Group . | . . . . . . Highest-Rated Ally . | . . . . . . Total Orders . | . . . . . . Ally Attacks . | . . . . . . Total Damage . | . . . . . . Kills . | . . . . . . Allies Corrupted . | . . . . . . Allies Melted . | . . . . . . Intel | -11 -10 -10 -9 -9 -8 ------- Run | Yrd Mat Min Mat Min Mat Active Infowar (turns) . | . . . . . . Robot Analysis Total 1 | . 1 . . . . Derelict Logs Recovered 1 | . . 1 . . . Drone Launches . | . . . . . . Drone Recoveries . | . . . . . . Exploration | -11 -10 -10 -9 -9 -8 ------------- Run | Yrd Mat Min Mat Min Mat Turns Passed 1349 | 64 151 72 224 81 757 Spaces Moved 978 | 63 153 71 183 65 443 Core 128 | 3 . . . . 125 Treads . | . . . . . . Legs 80 | . . . . . 80 Wheels 770 | 60 153 71 183 65 238 Hover . | . . . . . . Flight . | . . . . . . Fastest Speed 50 | 50 90 90 90 100 50 Average Speed 111 | 87 90 90 104 106 129 Slowest Speed 330 | 90 100 90 115 115 330 Overloaded Moves . | . . . . . . Propulsion Burnouts . | . . . . . . Robots Hopped . | . . . . . . Potential Cave-ins . | . . . . . . Cave-ins Triggered 1 | . . . . 1 . Exploration Rate (%) 22 | 3 30 25 20 27 28 Regions Visited 5 Branch Regions 2 Pre-discovered Areas . | . . . . . . Known Exits Taken 2 | . 1 1 . . . Unknown Exits Taken 3 | 1 . . 1 1 . Scrap Searched 1 | . . 1 . . . Spaces Dug . | . . . . . . Terrain Destroyed 67 | . . 52 15 . . Melee . | . . . . . . Projectile . | . . . . . . AOE 67 | . . 52 15 . . Terrain Rammed . | . . . . . . Walls Destroyed . | . . . . . . Machines Disabled . | . . . . . . Actions | -11 -10 -10 -9 -9 -8 --------- Run | Yrd Mat Min Mat Min Mat Total 1139 | 69 163 74 213 72 548 Wait 49 | . . . 25 . 24 Move 973 | 62 152 70 182 64 443 Hop . | . . . . . . Pick Up 6 | 2 3 . . . 1 Fast Attach 22 | 5 6 1 . 1 9 Attach 6 | . . . 2 3 1 Detach 1 | . . 1 . . . Swap 9 | . . . 2 . 7 Drop 9 | . 2 . 1 . 6 Fire 48 | . . 2 1 4 41 Melee 11 | . . . . . 11 Ram 5 | . . . . . 5 Kick . | . . . . . . Crush . | . . . . . . Escape Stasis . | . . . . . . Rewire . | . . . . . . Trap . | . . . . . . Miscellaneous . | . . . . . . Route ------- -11/Scrapyard -10/Materials (discovered 3 exits: *Mat / *Min x2) -10/Mines (discovered 2 exits: *Mat x2) -9/Materials -9/Mines -8/Materials History --------- Turn | Location | Event 9 | -11/Scrapyard | Discovered new exit (range 15) 65 | -11/Scrapyard | Entered Materials 127 | -10/Materials | Identified exit to Mines 136 | -10/Materials | Discovered new exit (range 15) 216 | -10/Materials | Entered Mines 269 | -10/Mines | Identified exit to Materials 275 | -10/Mines | Discovered exit to Materials (range 12) 288 | -10/Mines | Entered Materials 288 | -9/Materials | Evolved 2 slots: Utility x1, Weapon x1 472 | -9/Materials | Discovered new exit (range 15) 512 | -9/Materials | Entered Mines 513 | -9/Mines | Assembled infested the area 551 | -9/Mines | Discovered new exit (range 11) 553 | -9/Mines | Crushed by falling debris 575 | -9/Mines | Found the Drone Emporium 581 | -9/Mines | Found Prototype Device 581 | -9/Mines | Identified Sensor Drone Bay 584 | -9/Mines | Lost 4 parts (1p3w) 593 | -9/Mines | Entered Materials 593 | -8/Materials | Evolved 2 slots: Utility x2 1050 | -8/Materials | Build established: Scavenger-Mutant 1252 | -8/Materials | Core integrity fell below 50% 1274 | -8/Materials | Lost 7 parts (1p1n2u3w) 1328 | -8/Materials | Core integrity fell below 20% 1350 | -8/Materials | Destroyed by G-47 Trooper with Particle Gun Last Messages --------------- Critical hit (Burn: +37). G-47 Trooper destroyed. Acquired 15 matter. System corrupted: Matter fused (-10). Acquired 10 matter. K-01 Serf cleans the Terminal. K-01 Serf collects debris. Acquired 10 matter. K-01 Serf collects debris. R-06 Scavenger collects Lgt. Nuclear Core. R-06 Scavenger collects Imp. Heat Sink. R-06 Scavenger collects Aluminum Leg. R-06 Scavenger collects Ion Engine. Particle Gun destroyed. System corrupted: Matter fused (-8). Lgt. Nuclear Core destroyed. Slammed into G-47 Trooper. K-01 Serf cleans the Terminal. System corrupted: Matter fused (-5). Slammed into G-47 Trooper. Map ----- +----------------------------------------------------+ | !##???????????????????????????????????????? | | ####????????????????????????????????????????? | | # ##???????????????????????????????????????????? | | # #????????????????????????????????????????????? | | # #????????????????????????????????????????????? | | # #????????????????????????????????????????????? | | # #????????????????????????????????????????????? | | # #????????? """???????????????????????????????? | | # #????????? """""?????????????????????????????? | | # #???????? ????????????????????????????? | | # #??????? % ???????????????????????????? | | # ######## ???????????????????????????? | | + ""#?????????????????????????? | | # Y"#?????????????????????????? | | # ""#########?????????????????? | | # r ??????????????????? | | ###### ???????????????????? | | ?????# ######### ????????????????????? | | ?????# #???????# #?????????????????????? | | ?????# #???????# #?????????????????????? | | ?????# #???????# #?????????????????????? | | ?????# #???????# a #?????????????????????? | | ?????# #???????# #?????????????????????? | | ?????# #???????# #?????????????????????? | | ?????# #???????# s w #?????????????????????? | | ?????# #???????## #####g@ #?????????????????????? | | ?????# #????#####+##### #?????????????????????? | | ?????# #????# # #?????????????????????? | | ?????# #????# # #?????????????????????? | | ?????# #????# # #?????????????????????? | | ????## ##???# # #?????????????????????? | | ????# #???# # #####?????????????????? | | ????# " ##### + ????????????? | | ????# + # ????????????? | | ????#/ ##### # k ????????????? | | ????## ##???########### #########?????????????? | | ?????# #??????????????# #?????????????????????? | | ?????# +??????????????# #?????????????????????? | | ?????# #??????????????? #?????????????????????? | | ?????# #??????????????? #?????????????????????? | | ?????# #??????????????? ??????????????????????? | | ?????# +????????????????????????????????????????? | | ?????# #????????????????????????????????????????? | | ?????# #????????????????????????????????????????? | | ?????# #????????????????????????????????????????? | | ????? ] ????????????????????????????????????????? | | ????? ????????????????????????????????????????? | | ????? T ????????????????????????????????????????? | | ????? ????????????????????????????????????????? | | ?????##?#????????????????????????????????????????? | +----------------------------------------------------+ Best States ------------- Heat Dissipation 45 Energy Generation 14 Energy Capacity 265 Matter Stores 300 Matter Capacity 300 Sight Range 16 Terrain Scan Density 10 Armor Coverage 150 Core Shielding 20 Utility Shielding 66 Evasion (%) 50 Targeting Accuracy 8 Melee Accuracy 5 Item Schematics ----------------- None Robot Schematics ------------------ None Fabricated ------------ Nothing Repaired ---------- Nothing Studied --------- None Alien Tech Used ----------------- None Achievements -------------- None Challenges ------------ None Game ------ Seed TimingPulseFilter Manual? 0 Play Time 00:14:02 Cumulative 12.1 hours Start 2026.07.27 @ 19:07:16 End 2026.07.27 @ 19:20:23 Sessions 1 Manual Loads 0 Difficulty Rogue Special Mode None Game No. 31 Rogue 31 Adventurer 0 Explorer 0 Win Type - Total 0 Types 0/0/0/0/0/0/0/0/0/0 Lore% 15 Gallery% 13 Achievement% 13 Wizard Run 0 Options --------- Layout 1 ASCII 0 Keyboard 1 Movement Arrows Keybinds 0 Fullscreen 1 Font 36/SmallcapsGlow++ Map View 53x45 Zoom Use 0% Tactical HUD 0 Map Filters NONE Filters NONE Steam 1 RUN: 614e6e76-058c-48f1-9deb-653fd9637877